[Event "FIDE Candidates 2026"]
[Site "Pegeia, Cyprus"]
[Date "2026.04.14"]
[Round "13.4"]
[White "Caruana, Fabiano"]
[Black "Praggnanandhaa R"]
[Result "1/2-1/2"]
[ECO "E13"]
[WhiteElo "2795"]
[BlackElo "2741"]
[Annotator "Crowther,Mark"]
[PlyCount "85"]
[EventDate "2026.??.??"]
[TimeControl "40/7200:1800+30"]

{[%evp 0,85,28,25,28,4,10,10,10,10,31,-25,1,-36,-28,-9,-10,-7,-7,13,-14,-30,18,-15,-26,-26,-19,-28,-23,-31,22,-34,1,-48,-26,-28,11,43,30,26,5,5,5,1,84,65,106,105,148,33,44,62,92,88,96,76,113,110,70,119,129,129,126,126,126,157,123,151,164,103,109,91,91,104,104,113,113,108,108,108,108,108,108,104,116,41,52,62]} 1. d4 Nf6 2. c4 e6 3. Nc3 Bb4 4. Nf3 b6 5. Bg5 h6 6. Bh4 g5 7. Bg3 Ne4 8. Qc2 Bb7 9. e3 d6 10. Bd3 Bxc3+ 11. bxc3 f5 12. c5 Nd7 (12... bxc5 13. Qb3 Bd5 14. c4 Nxg3 15. cxd5 Nxh1 16. dxe6 g4) ({RR} 12... O-O 13. cxd6 cxd6 14. Qb3 Qe7 15. a4 Nc6 16. Bxe4 fxe4 17. Nd2 Na5 18. Qb4 Rfd8 19. h4 Nc6 20. Qb1 d5 21. hxg5 hxg5 22. f3 Kg7 23. fxe4 Rh8 24. O-O Rh6 25. Nf3 Rah8 26. Nh2 Kg8 27. exd5 {Voege,T (2298)-Wilgosz,J (1820) Lienz AUT 2025 1-0 (33)}) 13. cxd6 cxd6 14. O-O {[#]} Qe7 $146 {A new move. Four moves had been played previously.} ({RR} 14... Ndf6 15. c4 O-O 16. a4 Rf7 17. a5 bxa5 18. Nd2 Rc8 19. Nxe4 Nxe4 20. f3 Nxg3 21. hxg3 Ba6 22. Qe2 e5 23. g4 exd4 24. gxf5 dxe3 25. Qxe3 Bxc4 26. Bxc4 Rxc4 27. Rab1 Qc8 28. Rfd1 Qc5 29. Qxc5 {Wagner,D (2571)-Donchenko,A (2569) Drancy 2016 0-1 (51)}) ({RR} 14... Rc8 15. Qa4 Bc6 16. Qa3 Nxg3 17. fxg3 Qc7 18. Nd2 Nf6 19. Rae1 O-O 20. e4 fxe4 21. Nxe4 Nxe4 22. Rxf8+ Rxf8 23. Bxe4 Bxe4 24. Rxe4 Qf7 25. h4 Qf1+ 26. Kh2 Rf2 {0-1 (26) Voege,T (2272)-Zhigalko,S (2572) Chess.com INT 2022}) ({RR} 14... h5 15. h4 Qe7 16. Bxe4 Bxe4 17. Qe2 gxh4 18. Bxh4 Nf6 19. Ng5 Bc6 20. c4 Ne4 21. Nxe4 Qxh4 22. Nxd6+ Ke7 23. d5 Rag8 24. f4 Ba8 25. Nb5 Rg3 26. Rf3 exd5 27. Qb2 d4 28. Nxd4 Rf8 29. Qa3+ {Moiseenko,A (2712)-Lupulescu,C (2643) Yerevan 2014 1-0 (48)}) (14... O-O 15. Nd2 Ndf6 16. Nxe4 Nxe4 17. f3 Nxg3 18. hxg3 Rc8 19. Rac1 Qe7 20. e4 f4 21. g4 e5 22. Qa4 Bc6 23. Bb5 Qd7 24. Qb3+ Kg7 25. a4 Qf7 26. Qb4 Rfd8 27. Rfd1 a5 28. Qb2 h5 29. dxe5 hxg4 30. Rxd6 Rxd6 31. exd6 Qf6 32. Rd1 gxf3 33. Bxc6 Rxc6 34. Qd2 f2+ 35. Kxf2 Rc8 36. Qd4 Kf7 37. Qd5+ Qe6 38. Qxg5 Rg8 39. Qxf4+ Ke8 40. d7+ Ke7 41. d8=Q+ Rxd8 42. Qc7+ {1-0 Moiseenko,A (2561)-Idani,P (2605) Chess.com Classic Div 3 W Chess.com INT rapid 2024 (1.3)}) 15. Bxe4 Bxe4 16. Qe2 Bb7 17. Nd2 h5 $2 {[%eval 72,21] [%wdl 184,816,0] A mistake, but one that Polgar and Howell couldn't punish without some help from the evaluation bar. White will give up the bishop. Too amibtious.} (17... O-O-O) (17... O-O {Castling in either direction was playable.}) (17... Rc8) (17... e5 $11 {[%eval -6,20] [%wdl 3,991,6] Howell pointed to this as the most natural move.}) 18. Nc4 $1 $16 {Hitting d6, so forcing Black to continue with his move.} f4 19. exf4 h4 {Black traps the bishop, but at what cost $2} 20. fxg5 $1 hxg3 21. fxg3 {White has three pawns for the piece, as well as good play against the king.} Rc8 $2 {[%eval 294,14] [%wdl 1000,0,0]} (21... O-O-O {is met with} 22. Rf7 $1 {The point is} Qxf7 (22... Qxg5 23. Nxd6+ Kb8 24. Nxb7 {is also a disaster.} Kxb7 25. Qxe6) 23. Nxd6+) (21... Rg8 $16 {[%eval 133,18] [%wdl 877,123,0] is the computer suggestion, and it suggests that perhaps Black can survive (though the evaluation climbs as the computer thinks longer).} 22. Qh5+ Kd8 23. h4 Kc7 24. Rf7 {Good luck surviving this against Fabiano Caruana.}) 22. g6 $1 $18 {With a rook coming to the seventh rank, White is already winning.} Ba6 23. g7 $1 Rg8 24. Qh5+ Kd8 25. Rf7 {The queen is trapped.} Bxc4 (25... Nf6 26. Qg6) 26. Rxe7 Kxe7 27. Qg6 Nf6 28. d5 $1 Nxd5 (28... Bxd5 29. Rf1 {is now possible, as the bishop covered the f1-square.}) 29. h4 Nf6 30. h5 {The connected passers cost another piece.} Nxh5 31. Qxh5 Rxg7 32. Rd1 Bd5 33. Qh4+ (33. Qh6 Rf7 34. Qh4+ {may be more precise.}) 33... Kd7 34. Qa4+ Kd8 35. Rf1 Rxc3 36. Rf8+ Kc7 37. Qxa7+ Bb7 38. Qb8+ $2 {Played with just under five minutes for three more moves.} (38. Rb8 $1 {would have ended the game. The point is} Kc6 (38... Rc1+ {Black can check a few times, but it won't change the tactical motif.}) 39. Rc8+ {Black drops one of the rooks.}) (38. g4 Rc1+ 39. Kh2 Rc4 40. Rb8 Kc6 41. Rc8+ Rc7 42. Rxc7+ Kxc7 43. Kh3) 38... Kc6 39. Qe8+ Kc5 40. Qxe6 $6 {[%eval 10,22] [%wdl 3,996,1] The position is objectively drawn now. It hasn't been easy to exploit white's advantage and now he's no longer better.} (40. a4 $1 $16 {[%eval 79,23] [%wdl 201,799,0] was the only move to keep some advantage, according to the engine, but it's no longer winning.} Rcxg3 41. Qb5+ (41. Qxe6 Rxg2+ 42. Kf1 Ba6+ 43. Ke1 Rg1+ 44. Kd2 R7g2+ 45. Kc3 Rc1+ 46. Kb3 Bc4+ $19) 41... Kd4 42. Qb2+ (42. Qb4+ Ke5 43. Qb2+ (43. Qxb6 Rxg2+ 44. Kf1 Be4 $11) 43... Kd5 44. Qb5+ (44. Qxb6 Rxg2+ 45. Kf1 Ke5 $16)) (42. Qxb6+ Kc3 $16) 42... Kc5 {And it's far from clear how White should continue.}) 40... Rcxg3 $11 41. Rf5+ Kc6 $1 42. Rf2 Kc7 43. Rf7+ 1/2-1/2